[Event "December 12 Late 2023"]
[Site "https://www.chess.com"]
[Date "2023.12.12"]
[Round "6"]
[White "Kokoszczynski, Jan"]
[Black "Garcia Almaguer, Juan Manuel"]
[Result "1-0"]
[Board "71"]
[TimeControl "180+1"]
[WhiteFideId "1174460"]
[BlackFideId "5110491"]
[WhiteElo "2622"]
[BlackElo "2485"]
[WhiteTeam "POL"]
[BlackTeam "MEX"]
[WhiteClock "0:00:09"]
[BlackClock "0:00:00"]

1. d4 {[%clk 0:02:50]}  Nf6 {[%clk 0:02:58]} 2. Nf3 {[%clk 0:02:50]}  e6 {[%clk 0:02:57]} 3. Bf4 {[%clk 0:02:46]}  c5 {[%clk 0:02:57]} 4. e3 {[%clk 0:02:45]}  Nc6 {[%clk 0:02:55]} 5. c3 {[%clk 0:02:39]}  d5 {[%clk 0:02:54]} 6. Nbd2 {[%clk 0:02:38]}  Nh5 {[%clk 0:02:53]} 7. Bg5 {[%clk 0:02:16]}  Qb6 {[%clk 0:02:53]} 8. Qb3 {[%clk 0:02:15]}  h6 {[%clk 0:02:52]} 9. Bh4 {[%clk 0:02:14]}  g5 {[%clk 0:02:52]} 10. Bg3 {[%clk 0:02:15]}  Qd8 {[%clk 0:02:45]} 11. Bb5 {[%clk 0:02:06]}  c4 {[%clk 0:02:42]} 12. Qa4 {[%clk 0:02:01]}  Bd7 {[%clk 0:02:40]} 13. Ne5 {[%clk 0:01:55]}  Nxg3 {[%clk 0:02:36]} 14. hxg3 {[%clk 0:01:52]}  Nxe5 {[%clk 0:02:32]} 15. dxe5 {[%clk 0:01:51]}  Bxb5 {[%clk 0:02:25]} 16. Qxb5+ {[%clk 0:01:52]}  Qd7 {[%clk 0:02:26]} 17. Qxd7+ {[%clk 0:01:48]}  Kxd7 {[%clk 0:02:26]} 18. f4 {[%clk 0:01:42]}  Be7 {[%clk 0:02:24]} 19. Kf2 {[%clk 0:01:33]}  b5 {[%clk 0:02:20]} 20. Nf3 {[%clk 0:01:32]}  Kc6 {[%clk 0:02:11]} 21. Nd4+ {[%clk 0:01:30]}  Kb6 {[%clk 0:02:11]} 22. a3 {[%clk 0:01:31]}  a5 {[%clk 0:02:05]} 23. Rh5 {[%clk 0:01:31]}  Rag8 {[%clk 0:01:49]} 24. Rah1 {[%clk 0:01:29]}  gxf4 {[%clk 0:01:29]} 25. gxf4 {[%clk 0:01:26]}  Bf8 {[%clk 0:01:29]} 26. g3 {[%clk 0:00:53]}  Rg6 {[%clk 0:01:23]} 27. Kf3 {[%clk 0:00:54]}  Rhg8 {[%clk 0:01:22]} 28. R1h3 {[%clk 0:00:54]}  b4 {[%clk 0:01:22]} 29. axb4 {[%clk 0:00:54]}  axb4 {[%clk 0:01:23]} 30. Ne2 {[%clk 0:00:54]}  Kb5 {[%clk 0:01:15]} 31. Rh1 {[%clk 0:00:53]}  b3 {[%clk 0:01:10]} 32. Ra1 {[%clk 0:00:51]}  Bc5 {[%clk 0:01:09]} 33. Rh3 {[%clk 0:00:46]}  f6 {[%clk 0:01:02]} 34. exf6 {[%clk 0:00:44]}  Rxf6 {[%clk 0:01:02]} 35. Rah1 {[%clk 0:00:39]}  Ra8 {[%clk 0:00:55]} 36. g4 {[%clk 0:00:20]}  Ra2 {[%clk 0:00:48]} 37. Rb1 {[%clk 0:00:21]}  e5 {[%clk 0:00:48]} 38. f5 {[%clk 0:00:20]}  Rfa6 {[%clk 0:00:35]} 39. Rh2 {[%clk 0:00:14]}  Ra1 {[%clk 0:00:29]} 40. Rxa1 {[%clk 0:00:14]}  Rxa1 {[%clk 0:00:30]} 41. Rxh6 {[%clk 0:00:15]}  Rb1 {[%clk 0:00:31]} 42. g5 {[%clk 0:00:15]}  Rf1+ {[%clk 0:00:27]} 43. Kg4 {[%clk 0:00:15]}  Rf2 {[%clk 0:00:22]} 44. Ng3 {[%clk 0:00:11]}  Bxe3 {[%clk 0:00:21]} 45. Rh8 {[%clk 0:00:09]}  Bc1 {[%clk 0:00:20]} 46. g6 {[%clk 0:00:09]}  Rg2 {[%clk 0:00:18]} 47. g7 {[%clk 0:00:08]}  Bf4 {[%clk 0:00:18]} 48. Rh3 {[%clk 0:00:08]}  Rxb2 {[%clk 0:00:14]} 49. g8=Q {[%clk 0:00:09]}  d4 {[%clk 0:00:14]} 50. Qd5+ {[%clk 0:00:09]}  Ka4 {[%clk 0:00:00]} 51. Rh7 {[%clk 0:00:09]} 1-0

[Event "December 12 Late 2023"]
[Site "https://www.chess.com"]
[Date "2023.12.12"]
[Round "6"]
[White "Shapiro, Daniel"]
[Black "Iskusnyh, Sergei"]
[Result "0-1"]
[Board "75"]
[TimeControl "180+1"]
[WhiteFideId "2001780"]
[BlackFideId "4120027"]
[WhiteElo "2310"]
[BlackElo "2580"]
[WhiteTeam "USA"]
[BlackTeam "RUS"]
[WhiteClock "0:00:00"]
[BlackClock "0:00:18"]

1. d4 {[%clk 0:03:00]}  d5 {[%clk 0:02:59]} 2. c4 {[%clk 0:03:00]}  c6 {[%clk 0:02:58]} 3. Nf3 {[%clk 0:03:00]}  Nf6 {[%clk 0:02:58]} 4. Qb3 {[%clk 0:03:00]}  dxc4 {[%clk 0:02:57]} 5. Qxc4 {[%clk 0:02:59]}  Bf5 {[%clk 0:02:58]} 6. Nc3 {[%clk 0:02:57]}  e6 {[%clk 0:02:57]} 7. Qb3 {[%clk 0:02:57]}  Qb6 {[%clk 0:02:56]} 8. Nd2 {[%clk 0:02:57]}  Na6 {[%clk 0:02:41]} 9. e4 {[%clk 0:02:45]}  Bg6 {[%clk 0:02:40]} 10. Be2 {[%clk 0:02:11]}  Rd8 {[%clk 0:02:29]} 11. O-O {[%clk 0:01:49]}  Rxd4 {[%clk 0:02:22]} 12. Qxb6 {[%clk 0:01:47]}  axb6 {[%clk 0:02:21]} 13. Nb3 {[%clk 0:01:30]}  Rd7 {[%clk 0:02:04]} 14. f3 {[%clk 0:01:24]}  Nc5 {[%clk 0:02:01]} 15. Be3 {[%clk 0:01:24]}  Be7 {[%clk 0:01:57]} 16. Rfd1 {[%clk 0:01:22]}  O-O {[%clk 0:01:53]} 17. Nxc5 {[%clk 0:01:15]}  Bxc5 {[%clk 0:01:52]} 18. Bxc5 {[%clk 0:01:13]}  bxc5 {[%clk 0:01:50]} 19. Na4 {[%clk 0:01:13]}  Ra8 {[%clk 0:01:10]} 20. Nxc5 {[%clk 0:01:07]}  Rxd1+ {[%clk 0:01:09]} 21. Rxd1 {[%clk 0:01:02]}  b6 {[%clk 0:01:10]} 22. Na4 {[%clk 0:00:31]}  b5 {[%clk 0:01:01]} 23. Nb6 {[%clk 0:00:27]}  Rb8 {[%clk 0:00:58]} 24. Nd7 {[%clk 0:00:24]}  Ra8 {[%clk 0:00:57]} 25. a3 {[%clk 0:00:17]}  h5 {[%clk 0:00:50]} 26. Nxf6+ {[%clk 0:00:13]}  gxf6 {[%clk 0:00:49]} 27. Rc1 {[%clk 0:00:13]}  Ra6 {[%clk 0:00:48]} 28. Kf2 {[%clk 0:00:13]}  f5 {[%clk 0:00:47]} 29. Ke3 {[%clk 0:00:12]}  fxe4 {[%clk 0:00:45]} 30. fxe4 {[%clk 0:00:13]}  e5 {[%clk 0:00:43]} 31. Rd1 {[%clk 0:00:11]}  Ra4 {[%clk 0:00:41]} 32. Bf3 {[%clk 0:00:09]}  b4 {[%clk 0:00:41]} 33. Ra1 {[%clk 0:00:05]}  h4 {[%clk 0:00:39]} 34. Bd1 {[%clk 0:00:05]}  Ra5 {[%clk 0:00:35]} 35. a4 {[%clk 0:00:06]}  Kg7 {[%clk 0:00:33]} 36. Bb3 {[%clk 0:00:06]}  c5 {[%clk 0:00:30]} 37. Rd1 {[%clk 0:00:05]}  c4 {[%clk 0:00:27]} 38. Bxc4 {[%clk 0:00:05]}  Rxa4 {[%clk 0:00:28]} 39. Bb3 {[%clk 0:00:05]}  Ra7 {[%clk 0:00:27]} 40. Rd5 {[%clk 0:00:05]}  Kf6 {[%clk 0:00:27]} 41. Rb5 {[%clk 0:00:05]}  Ra1 {[%clk 0:00:23]} 42. Rxb4 {[%clk 0:00:05]}  Rh1 {[%clk 0:00:23]} 43. h3 {[%clk 0:00:04]}  Ra1 {[%clk 0:00:22]} 44. Bd5 {[%clk 0:00:03]}  Kg5 {[%clk 0:00:20]} 45. Rb6 {[%clk 0:00:03]}  Rd1 {[%clk 0:00:19]} 46. Bc4 {[%clk 0:00:02]}  Rd4 {[%clk 0:00:18]} 47. Bd5 {[%clk 0:00:02]}  f5 {[%clk 0:00:18]} 48. b4 {[%clk 0:00:02]}  fxe4 {[%clk 0:00:18]} 49. Be6 {[%clk 0:00:02]}  Rd3+ {[%clk 0:00:18]} 50. Ke2 {[%clk 0:00:02]}  Bh5+ {[%clk 0:00:17]} 51. Kf2 {[%clk 0:00:01]}  e3+ {[%clk 0:00:17]} 52. Kg1 {[%clk 0:00:01]}  Rd1+ {[%clk 0:00:17]} 53. Kh2 {[%clk 0:00:00]}  e2 {[%clk 0:00:18]} 0-1

[Event "December 12 Late 2023"]
[Site "https://www.chess.com"]
[Date "2023.12.12"]
[Round "6"]
[White "Khater, Sherif"]
[Black "Flash_BJ"]
[Result "1/2-1/2"]
[Board "77"]
[TimeControl "180+1"]
[WhiteFideId "2034280"]
[WhiteElo "2563"]
[BlackElo "2220"]
[WhiteTeam "USA"]
[WhiteClock "0:00:19"]
[BlackClock "0:00:12"]

1. b3 {[%clk 0:03:00]}  g6 {[%clk 0:02:56]} 2. Bb2 {[%clk 0:03:00]}  Nf6 {[%clk 0:02:57]} 3. Nf3 {[%clk 0:03:00]}  Bg7 {[%clk 0:02:57]} 4. g3 {[%clk 0:03:00]}  O-O {[%clk 0:02:57]} 5. Bg2 {[%clk 0:03:00]}  d6 {[%clk 0:02:54]} 6. O-O {[%clk 0:03:01]}  e5 {[%clk 0:02:53]} 7. d3 {[%clk 0:03:01]}  Re8 {[%clk 0:02:49]} 8. Nbd2 {[%clk 0:03:01]}  Nbd7 {[%clk 0:02:48]} 9. e4 {[%clk 0:03:01]}  c6 {[%clk 0:02:46]} 10. d4 {[%clk 0:03:01]}  Qc7 {[%clk 0:02:43]} 11. dxe5 {[%clk 0:03:01]}  dxe5 {[%clk 0:02:41]} 12. Re1 {[%clk 0:02:57]}  Nf8 {[%clk 0:02:29]} 13. Nc4 {[%clk 0:02:55]}  Bg4 {[%clk 0:02:27]} 14. h3 {[%clk 0:02:55]}  Bxf3 {[%clk 0:02:27]} 15. Bxf3 {[%clk 0:02:56]}  Rad8 {[%clk 0:02:25]} 16. Qe2 {[%clk 0:02:55]}  Ne6 {[%clk 0:02:21]} 17. Bxe5 {[%clk 0:02:54]}  Qe7 {[%clk 0:00:58]} 18. Rad1 {[%clk 0:02:44]}  Ng5 {[%clk 0:00:45]} 19. Bg2 {[%clk 0:02:29]}  Rxd1 {[%clk 0:00:45]} 20. Rxd1 {[%clk 0:02:27]}  b5 {[%clk 0:00:41]} 21. Bd6 {[%clk 0:02:15]}  Qe6 {[%clk 0:00:39]} 22. Na5 {[%clk 0:01:58]}  Ngxe4 {[%clk 0:00:36]} 23. Bb4 {[%clk 0:01:13]}  Nd5 {[%clk 0:00:35]} 24. Qxe4 {[%clk 0:01:04]}  Qxe4 {[%clk 0:00:35]} 25. Bxe4 {[%clk 0:01:05]}  Rxe4 {[%clk 0:00:35]} 26. Be1 {[%clk 0:01:03]}  Bc3 {[%clk 0:00:32]} 27. Bxc3 {[%clk 0:00:51]}  Nxc3 {[%clk 0:00:33]} 28. Rd8+ {[%clk 0:00:50]}  Kg7 {[%clk 0:00:33]} 29. Nxc6 {[%clk 0:00:51]}  Nxa2 {[%clk 0:00:31]} 30. Nxa7 {[%clk 0:00:48]}  Re2 {[%clk 0:00:31]} 31. Nxb5 {[%clk 0:00:43]}  Rxc2 {[%clk 0:00:29]} 32. Nd4 {[%clk 0:00:43]}  Rb2 {[%clk 0:00:27]} 33. Rb8 {[%clk 0:00:37]}  Nc1 {[%clk 0:00:27]} 34. b4 {[%clk 0:00:33]}  Nd3 {[%clk 0:00:27]} 35. b5 {[%clk 0:00:33]}  Nxf2 {[%clk 0:00:28]} 36. h4 {[%clk 0:00:30]}  Ne4 {[%clk 0:00:27]} 37. Rb7 {[%clk 0:00:24]}  Kf6 {[%clk 0:00:26]} 38. Rb6+ {[%clk 0:00:22]}  Ke5 {[%clk 0:00:26]} 39. Nf3+ {[%clk 0:00:21]}  Kd5 {[%clk 0:00:24]} 40. Rb7 {[%clk 0:00:19]}  f5 {[%clk 0:00:24]} 41. Rxh7 {[%clk 0:00:17]}  Rxb5 {[%clk 0:00:23]} 42. Rg7 {[%clk 0:00:18]}  Nxg3 {[%clk 0:00:22]} 43. Rxg6 {[%clk 0:00:17]}  Ne2+ {[%clk 0:00:23]} 44. Kf2 {[%clk 0:00:17]}  Nd4 {[%clk 0:00:21]} 45. Nxd4 {[%clk 0:00:16]}  Kxd4 {[%clk 0:00:22]} 46. h5 {[%clk 0:00:16]}  Ke4 {[%clk 0:00:21]} 47. h6 {[%clk 0:00:16]}  Rb1 {[%clk 0:00:19]} 48. Kg2 {[%clk 0:00:16]}  Rb8 {[%clk 0:00:18]} 49. h7 {[%clk 0:00:16]}  Rh8 {[%clk 0:00:18]} 50. Rh6 {[%clk 0:00:16]}  Kf4 {[%clk 0:00:18]} 51. Kf2 {[%clk 0:00:16]}  Kg5 {[%clk 0:00:18]} 52. Rh1 {[%clk 0:00:16]}  Kg6 {[%clk 0:00:19]} 53. Kf3 {[%clk 0:00:17]}  Rxh7 {[%clk 0:00:18]} 54. Rxh7 {[%clk 0:00:17]}  Kxh7 {[%clk 0:00:19]} 55. Kf4 {[%clk 0:00:18]}  Kg6 {[%clk 0:00:20]} 56. Kf3 {[%clk 0:00:18]}  Kg5 {[%clk 0:00:12]} 57. Kg3 {[%clk 0:00:19]} 1/2-1/2

[Event "December 12 Late 2023"]
[Site "https://www.chess.com"]
[Date "2023.12.12"]
[Round "6"]
[White "Rustemov, Alexander"]
[Black "Arnold, Ken"]
[Result "1-0"]
[Board "79"]
[TimeControl "180+1"]
[WhiteFideId "4119002"]
[BlackFideId "2056836"]
[WhiteElo "2799"]
[BlackElo "2453"]
[WhiteTeam "RUS"]
[BlackTeam "USA"]
[WhiteClock "0:00:50"]
[BlackClock "0:00:13"]

1. d4 {[%clk 0:03:00]}  Nf6 {[%clk 0:02:59]} 2. c4 {[%clk 0:02:56]}  e6 {[%clk 0:02:59]} 3. Nf3 {[%clk 0:02:56]}  b6 {[%clk 0:02:58]} 4. a3 {[%clk 0:02:55]}  Bb7 {[%clk 0:02:58]} 5. Nc3 {[%clk 0:02:55]}  Be7 {[%clk 0:02:55]} 6. Qc2 {[%clk 0:02:50]}  d5 {[%clk 0:02:54]} 7. cxd5 {[%clk 0:02:45]}  Nxd5 {[%clk 0:02:52]} 8. Bd2 {[%clk 0:02:42]}  O-O {[%clk 0:02:50]} 9. e4 {[%clk 0:02:39]}  Nxc3 {[%clk 0:02:45]} 10. Bxc3 {[%clk 0:02:39]}  c5 {[%clk 0:02:42]} 11. Rd1 {[%clk 0:02:38]}  cxd4 {[%clk 0:02:40]} 12. Nxd4 {[%clk 0:02:29]}  Qc8 {[%clk 0:02:36]} 13. Bd3 {[%clk 0:02:18]}  Nc6 {[%clk 0:02:32]} 14. Nf3 {[%clk 0:02:10]}  Ba6 {[%clk 0:02:15]} 15. O-O {[%clk 0:02:07]}  Bxd3 {[%clk 0:02:10]} 16. Qxd3 {[%clk 0:02:05]}  Rd8 {[%clk 0:02:07]} 17. Qc4 {[%clk 0:01:59]}  Na5 {[%clk 0:01:50]} 18. Qxc8 {[%clk 0:01:49]}  Raxc8 {[%clk 0:01:50]} 19. Bxa5 {[%clk 0:01:48]}  bxa5 {[%clk 0:01:50]} 20. Rxd8+ {[%clk 0:01:48]}  Bxd8 {[%clk 0:01:46]} 21. Rd1 {[%clk 0:01:45]}  g6 {[%clk 0:01:39]} 22. Kf1 {[%clk 0:01:43]}  Bf6 {[%clk 0:01:37]} 23. e5 {[%clk 0:01:38]}  Bd8 {[%clk 0:01:34]} 24. Ke2 {[%clk 0:01:33]}  Bb6 {[%clk 0:01:32]} 25. Ne1 {[%clk 0:01:30]}  Kg7 {[%clk 0:01:20]} 26. f4 {[%clk 0:01:24]}  h6 {[%clk 0:01:17]} 27. h4 {[%clk 0:01:22]}  g5 {[%clk 0:01:16]} 28. fxg5 {[%clk 0:01:19]}  hxg5 {[%clk 0:01:16]} 29. hxg5 {[%clk 0:01:16]}  Kg6 {[%clk 0:01:15]} 30. Rd7 {[%clk 0:01:15]}  Rc5 {[%clk 0:01:10]} 31. Nd3 {[%clk 0:01:09]}  Rc2+ {[%clk 0:01:09]} 32. Kf3 {[%clk 0:01:10]}  Kg7 {[%clk 0:00:54]} 33. g3 {[%clk 0:00:59]}  a4 {[%clk 0:00:52]} 34. Nf4 {[%clk 0:00:55]}  Rxb2 {[%clk 0:00:43]} 35. Nxe6+ {[%clk 0:00:53]}  Kg6 {[%clk 0:00:38]} 36. Nf4+ {[%clk 0:00:53]}  Kxg5 {[%clk 0:00:34]} 37. Rxf7 {[%clk 0:00:52]}  Rb3+ {[%clk 0:00:32]} 38. Ke4 {[%clk 0:00:53]}  Re3+ {[%clk 0:00:26]} 39. Kd5 {[%clk 0:00:52]}  Rxg3 {[%clk 0:00:24]} 40. e6 {[%clk 0:00:50]}  Rxa3 {[%clk 0:00:19]} 41. e7 {[%clk 0:00:50]}  Re3 {[%clk 0:00:13]} 42. Ne6+ {[%clk 0:00:50]} 1-0

[Event "December 12 Late 2023"]
[Site "https://www.chess.com"]
[Date "2023.12.12"]
[Round "6"]
[White "Urbina Perez, Juan Antonio"]
[Black "Mirzoev, Azer"]
[Result "0-1"]
[Board "81"]
[TimeControl "180+1"]
[WhiteFideId "2217368"]
[BlackFideId "13400304"]
[WhiteElo "2443"]
[BlackElo "2602"]
[WhiteTeam "ESP"]
[BlackTeam "AZE"]
[WhiteClock "0:00:21"]
[BlackClock "0:00:41"]

1. d4 {[%clk 0:03:00]}  d5 {[%clk 0:02:13]} 2. Nf3 {[%clk 0:02:58]}  e6 {[%clk 0:02:12]} 3. c4 {[%clk 0:02:59]}  c6 {[%clk 0:02:04]} 4. g3 {[%clk 0:02:56]}  f5 {[%clk 0:02:03]} 5. Bg2 {[%clk 0:02:55]}  Nf6 {[%clk 0:02:03]} 6. O-O {[%clk 0:02:55]}  Bd6 {[%clk 0:02:01]} 7. Nfd2 {[%clk 0:02:55]}  O-O {[%clk 0:01:59]} 8. Nc3 {[%clk 0:02:54]}  f4 {[%clk 0:01:57]} 9. e4 {[%clk 0:02:46]}  fxe3 {[%clk 0:01:55]} 10. fxe3 {[%clk 0:02:46]}  Bc7 {[%clk 0:01:40]} 11. e4 {[%clk 0:02:44]}  Na6 {[%clk 0:01:32]} 12. a3 {[%clk 0:02:40]}  dxe4 {[%clk 0:01:22]} 13. Ndxe4 {[%clk 0:02:39]}  Nxe4 {[%clk 0:01:22]} 14. Nxe4 {[%clk 0:02:35]}  Rxf1+ {[%clk 0:01:21]} 15. Bxf1 {[%clk 0:02:35]}  e5 {[%clk 0:01:21]} 16. Be3 {[%clk 0:02:26]}  exd4 {[%clk 0:01:20]} 17. Qxd4 {[%clk 0:02:23]}  Bf5 {[%clk 0:01:19]} 18. Bg2 {[%clk 0:02:15]}  Bb6 {[%clk 0:01:12]} 19. Qxd8+ {[%clk 0:02:08]}  Rxd8 {[%clk 0:01:12]} 20. Bxb6 {[%clk 0:02:08]}  axb6 {[%clk 0:01:11]} 21. Nc3 {[%clk 0:01:41]}  Nc5 {[%clk 0:01:05]} 22. b4 {[%clk 0:01:37]}  Nb3 {[%clk 0:01:03]} 23. Rd1 {[%clk 0:01:32]}  Rxd1+ {[%clk 0:01:01]} 24. Nxd1 {[%clk 0:01:32]}  Nd2 {[%clk 0:00:55]} 25. Ne3 {[%clk 0:00:51]}  Be6 {[%clk 0:00:52]} 26. Bf1 {[%clk 0:00:48]}  Nxf1 {[%clk 0:00:49]} 27. Kxf1 {[%clk 0:00:49]}  Kf7 {[%clk 0:00:50]} 28. Ke2 {[%clk 0:00:49]}  Kf6 {[%clk 0:00:50]} 29. Kd3 {[%clk 0:00:49]}  Ke5 {[%clk 0:00:51]} 30. a4 {[%clk 0:00:39]}  c5 {[%clk 0:00:49]} 31. bxc5 {[%clk 0:00:36]}  bxc5 {[%clk 0:00:50]} 32. a5 {[%clk 0:00:35]}  h6 {[%clk 0:00:49]} 33. Ng2 {[%clk 0:00:31]}  Bf5+ {[%clk 0:00:48]} 34. Ke3 {[%clk 0:00:28]}  g5 {[%clk 0:00:47]} 35. h4 {[%clk 0:00:28]}  Bh3 {[%clk 0:00:40]} 36. Ne1 {[%clk 0:00:27]}  Be6 {[%clk 0:00:39]} 37. hxg5 {[%clk 0:00:27]}  hxg5 {[%clk 0:00:39]} 38. Nd3+ {[%clk 0:00:25]}  Kd6 {[%clk 0:00:39]} 39. Ke4 {[%clk 0:00:20]}  Bxc4 {[%clk 0:00:39]} 40. Ne5 {[%clk 0:00:20]}  Be6 {[%clk 0:00:39]} 41. Nf3 {[%clk 0:00:20]}  Bd5+ {[%clk 0:00:38]} 42. Ke3 {[%clk 0:00:19]}  Bxf3 {[%clk 0:00:39]} 43. Kxf3 {[%clk 0:00:19]}  c4 {[%clk 0:00:39]} 44. Ke4 {[%clk 0:00:20]}  Kc5 {[%clk 0:00:40]} 45. Kf5 {[%clk 0:00:20]}  c3 {[%clk 0:00:40]} 46. Kxg5 {[%clk 0:00:21]}  c2 {[%clk 0:00:41]} 0-1

[Event "December 12 Late 2023"]
[Site "https://www.chess.com"]
[Date "2023.12.12"]
[Round "6"]
[White "Rees, Ioan"]
[Black "Melikhov, Evgeny V."]
[Result "1/2-1/2"]
[Board "85"]
[TimeControl "180+1"]
[WhiteFideId "1801236"]
[BlackFideId "4122046"]
[WhiteElo "2532"]
[BlackElo "2410"]
[WhiteTeam "WLS"]
[BlackTeam "GRE"]
[WhiteClock "0:00:40"]
[BlackClock "0:00:05"]

1. e4 {[%clk 0:03:00]}  e5 {[%clk 0:02:59]} 2. Nf3 {[%clk 0:03:01]}  Nc6 {[%clk 0:02:59]} 3. Bc4 {[%clk 0:03:01]}  Nf6 {[%clk 0:02:59]} 4. d3 {[%clk 0:03:01]}  Be7 {[%clk 0:02:58]} 5. Nc3 {[%clk 0:02:57]}  d6 {[%clk 0:02:57]} 6. a4 {[%clk 0:02:56]}  a5 {[%clk 0:02:54]} 7. O-O {[%clk 0:02:53]}  O-O {[%clk 0:02:54]} 8. Bg5 {[%clk 0:02:50]}  h6 {[%clk 0:02:50]} 9. Bxf6 {[%clk 0:02:48]}  Bxf6 {[%clk 0:02:50]} 10. Nd5 {[%clk 0:02:49]}  Be6 {[%clk 0:02:44]} 11. c3 {[%clk 0:02:46]}  g6 {[%clk 0:02:32]} 12. Qb3 {[%clk 0:02:44]}  b6 {[%clk 0:02:24]} 13. Rad1 {[%clk 0:02:42]}  Bg7 {[%clk 0:02:20]} 14. h3 {[%clk 0:02:28]}  Ne7 {[%clk 0:02:12]} 15. d4 {[%clk 0:02:23]}  Bxd5 {[%clk 0:02:07]} 16. Bxd5 {[%clk 0:02:23]}  Nxd5 {[%clk 0:02:07]} 17. Qxd5 {[%clk 0:02:21]}  exd4 {[%clk 0:02:07]} 18. Nxd4 {[%clk 0:02:16]}  Bxd4 {[%clk 0:01:55]} 19. Rxd4 {[%clk 0:02:17]}  Qe7 {[%clk 0:01:54]} 20. f4 {[%clk 0:02:11]}  Rae8 {[%clk 0:01:52]} 21. b4 {[%clk 0:01:54]}  axb4 {[%clk 0:01:25]} 22. cxb4 {[%clk 0:01:55]}  Qd7 {[%clk 0:01:19]} 23. a5 {[%clk 0:01:54]}  bxa5 {[%clk 0:01:18]} 24. bxa5 {[%clk 0:01:55]}  c6 {[%clk 0:01:14]} 25. Qxd6 {[%clk 0:01:54]}  Qxd6 {[%clk 0:01:14]} 26. Rxd6 {[%clk 0:01:55]}  Rxe4 {[%clk 0:01:14]} 27. Rxc6 {[%clk 0:01:55]}  Ra4 {[%clk 0:01:13]} 28. Ra6 {[%clk 0:01:53]}  Ra2 {[%clk 0:01:07]} 29. f5 {[%clk 0:01:52]}  gxf5 {[%clk 0:00:56]} 30. Rxf5 {[%clk 0:01:50]}  Re8 {[%clk 0:00:50]} 31. Rxh6 {[%clk 0:01:47]}  Ree2 {[%clk 0:00:44]} 32. Rg5+ {[%clk 0:01:46]}  Kf8 {[%clk 0:00:44]} 33. Ra6 {[%clk 0:01:41]}  Rec2 {[%clk 0:00:32]} 34. Ra7 {[%clk 0:01:38]}  Rc1+ {[%clk 0:00:26]} 35. Kh2 {[%clk 0:01:38]}  Rca1 {[%clk 0:00:27]} 36. h4 {[%clk 0:01:36]}  Ra4 {[%clk 0:00:19]} 37. g3 {[%clk 0:01:29]}  R4a2+ {[%clk 0:00:14]} 38. Kh3 {[%clk 0:01:29]}  Rh1+ {[%clk 0:00:14]} 39. Kg4 {[%clk 0:01:28]}  Ra4+ {[%clk 0:00:13]} 40. Kh5 {[%clk 0:01:27]}  Rg1 {[%clk 0:00:13]} 41. g4 {[%clk 0:01:16]}  Rh1 {[%clk 0:00:11]} 42. Rf5 {[%clk 0:01:12]}  Kg8 {[%clk 0:00:09]} 43. Rfxf7 {[%clk 0:01:10]}  Rxa5+ {[%clk 0:00:10]} 44. Rxa5 {[%clk 0:01:08]}  Kxf7 {[%clk 0:00:10]} 45. Ra7+ {[%clk 0:01:06]}  Kg8 {[%clk 0:00:10]} 46. Kg6 {[%clk 0:01:06]}  Kf8 {[%clk 0:00:08]} 47. h5 {[%clk 0:01:06]}  Rb1 {[%clk 0:00:07]} 48. Ra6 {[%clk 0:01:00]}  Rb7 {[%clk 0:00:06]} 49. g5 {[%clk 0:00:58]}  Rb8 {[%clk 0:00:06]} 50. Kf6 {[%clk 0:00:57]}  Kg8 {[%clk 0:00:05]} 51. Rd6 {[%clk 0:00:55]}  Kh8 {[%clk 0:00:04]} 52. Ke7 {[%clk 0:00:55]}  Rg8 {[%clk 0:00:04]} 53. g6 {[%clk 0:00:54]}  Kg7 {[%clk 0:00:03]} 54. h6+ {[%clk 0:00:45]}  Kxh6 {[%clk 0:00:02]} 55. Kf7 {[%clk 0:00:45]}  Rg7+ {[%clk 0:00:03]} 56. Kf8 {[%clk 0:00:41]}  Rxg6 {[%clk 0:00:03]} 57. Rd1 {[%clk 0:00:42]}  Rf6+ {[%clk 0:00:03]} 58. Ke7 {[%clk 0:00:43]}  Rg6 {[%clk 0:00:03]} 59. Kf7 {[%clk 0:00:43]}  Rg7+ {[%clk 0:00:03]} 60. Kf6 {[%clk 0:00:43]}  Rg6+ {[%clk 0:00:03]} 61. Kf5 {[%clk 0:00:44]}  Rg5+ {[%clk 0:00:04]} 62. Kf6 {[%clk 0:00:45]}  Rg6+ {[%clk 0:00:04]} 63. Kf5 {[%clk 0:00:46]}  Rg5+ {[%clk 0:00:04]} 64. Kf4 {[%clk 0:00:47]}  Rg6 {[%clk 0:00:04]} 65. Rd7 {[%clk 0:00:45]}  Rg7 {[%clk 0:00:04]} 66. Rd8 {[%clk 0:00:44]}  Rg6 {[%clk 0:00:04]} 67. Kf5 {[%clk 0:00:43]}  Rg5+ {[%clk 0:00:05]} 68. Kf6 {[%clk 0:00:43]}  Rg6+ {[%clk 0:00:05]} 69. Kf5 {[%clk 0:00:44]}  Rg5+ {[%clk 0:00:05]} 70. Kf4 {[%clk 0:00:45]}  Rg6 {[%clk 0:00:06]} 71. Rh8+ {[%clk 0:00:43]}  Kg7 {[%clk 0:00:05]} 72. Ra8 {[%clk 0:00:44]}  Rf6+ {[%clk 0:00:05]} 73. Kg5 {[%clk 0:00:44]}  Rg6+ {[%clk 0:00:06]} 74. Kf5 {[%clk 0:00:43]}  Rf6+ {[%clk 0:00:06]} 75. Ke5 {[%clk 0:00:44]}  Rg6 {[%clk 0:00:06]} 76. Ra7+ {[%clk 0:00:41]}  Kh6 {[%clk 0:00:06]} 77. Kf5 {[%clk 0:00:42]}  Rg5+ {[%clk 0:00:06]} 78. Kf4 {[%clk 0:00:42]}  Rg6 {[%clk 0:00:06]} 79. Ra8 {[%clk 0:00:42]}  Rg7 {[%clk 0:00:06]} 80. Kf5 {[%clk 0:00:41]}  Rf7+ {[%clk 0:00:06]} 81. Ke6 {[%clk 0:00:41]}  Rg7 {[%clk 0:00:06]} 82. Rh8+ {[%clk 0:00:38]}  Kg6 {[%clk 0:00:06]} 83. Rh1 {[%clk 0:00:38]}  Ra7 {[%clk 0:00:05]} 84. Rg1+ {[%clk 0:00:38]}  Kh6 {[%clk 0:00:05]} 85. Rh1+ {[%clk 0:00:38]}  Kg6 {[%clk 0:00:05]} 86. Rg1+ {[%clk 0:00:39]}  Kh6 {[%clk 0:00:05]} 87. Rh1+ {[%clk 0:00:40]}  Kg6 {[%clk 0:00:05]} 1/2-1/2